fUST/lending_fUST_20251226
["ID","MTS","AMOUNT","RATE_DAILY","PERIOD"]
[399854332,1766749131798,-300.0,0.00016296,2]
[399854333,1766749131828,-300.0,0.00016296,2]
[399854334,1766749131859,-300.0,0.00016296,2]
[399854335,1766749131890,-300.0,0.00016296,2]
[399854336,1766749131920,-300.0,0.00016296,2]
[399854337,1766749131951,-300.0,0.00016296,2]
[399854338,1766749131982,-300.0,0.00016296,2]
[399854339,1766749132015,-300.0,0.00016296,2]
[399854340,1766749132045,-300.0,0.00016296,2]
[399854341,1766749132075,-300.0,0.00016296,2]
[399854342,1766749132106,-300.0,0.00016296,2]
[399854343,1766749132136,-151.51195432,0.00016413,2]
[399854344,1766749132434,-38.8208544,0.00016413,2]
[399854345,1766749134384,-342.25645664,0.00016413,2]
[399854346,1766749134416,-202.42958241,0.00016579,7]
[399854347,1766749134448,-600.0,0.00016621,2]
[399854348,1766749134478,-500.0,0.00016745,2]
[399854349,1766749134507,-500.0,0.00016745,2]
[399854350,1766749134536,-500.0,0.00016745,2]
[399854351,1766749134564,-150.0,0.00016745,2]
[399854352,1766749134593,-150.0,0.00016745,2]
[399854353,1766749134621,-250.0,0.00016745,2]
[399854354,1766749134649,-500.0,0.00016858,7]
[399854355,1766749134678,-551.43282631,0.00016882,2]
[399854356,1766749134707,-500.0,0.00016882,2]
[399854357,1766749134735,-7.77226928,0.00016882,2]
[399854358,1766749134916,-492.22773072,0.00016882,2]
[399854359,1766749140538,-200.0,0.00016882,2]
[399854360,1766749140568,-150.0,0.00016882,2]
[399854361,1766749140597,-1000.0,0.00016906,2]
[399854362,1766749140626,-686.49900382,0.00016906,2]
[399854363,1766749205348,-500.0,0.0001314,2]
[399854364,1766749205377,-500.0,0.00013273,2]
[399854365,1766749205404,-500.0,0.00013273,2]
[399854366,1766749205431,-500.0,0.00013273,2]
[399854367,1766749205459,-500.0,0.00013273,2]
[399854368,1766749205489,-500.0,0.00013821,2]
[399854369,1766749205520,-174.3541071,0.00015682,2]
[399854370,1766749205635,-3651.3017858,0.00015682,2]
[399854371,1766749208238,-606.0,0.0001314,2]
[399854372,1766749208272,-212.43519339,0.0001672,2]
[399854373,1766749208304,-1200.0,0.00016828,2]
[399854374,1766749208336,-2203.46095636,0.00016829,2]
[399854375,1766749208408,-1556.2177005,0.00016829,2]
[399854376,1766749213997,150.0,5.377e-05,2]
[399854377,1766749216520,5000.0,0.00016843,2]
[399854378,1766749240764,4850.01,0.00016843,2]
[399854379,1766749240788,149.99,0.00016843,2]
[399854380,1766749257132,-500.0,0.00016858,7]
[399854381,1766749263941,5000.0,0.00016858,2]
[399854382,1766749265681,150.0,0.0001676,2]
[399854383,1766749266357,500.0,0.00013273,2]
[399854384,1766749266399,500.0,0.00013273,2]
[399854385,1766749266425,500.0,0.00013699,2]
[399854386,1766749266451,1000.0,0.00013821,2]
[399854387,1766749266479,1000.0,0.00013821,2]
[399854388,1766749266893,350.01,0.00013273,2]
[399854389,1766749266917,254.55995174,0.00013273,2]
[399854390,1766749267080,500.0,0.00013273,2]
[399854391,1766749267136,500.0,0.00013821,2]
[399854392,1766749271998,-150.0,0.00016897,2]
[399854393,1766749273018,2477.5243733,0.00016724,2]
[399854394,1766749278372,150.0,5.389e-05,2]
[399854395,1766749278795,150.0,5.645e-05,2]
[399854396,1766749279212,150.0,5.902e-05,2]
[399854397,1766749279635,150.0,6.158e-05,2]
[399854398,1766749280080,150.0,6.415e-05,2]
[399854399,1766749280510,150.0,6.672e-05,2]
[399854400,1766749280897,150.0,6.928e-05,2]
[399854401,1766749281317,152.73,7.185e-05,2]
[399854402,1766749282208,171.82,7.441e-05,2]
[399854403,1766749287083,5000.0,0.00016897,2]
[399854404,1766749310834,847.9356267,0.00016897,2]
[399854405,1766749310858,4152.0643733,0.00016897,2]
[399854406,1766749323334,500.0,0.00013273,2]
[399854407,1766749323394,519.37448667,0.00013821,2]
[399854408,1766749325549,168.67203081,0.00013273,2]
[399854409,1766749334066,4659.89910922,0.00016897,2]
[399854410,1766749334090,340.10089078,0.00016897,2]
[399854411,1766749346524,150.0,5.353e-05,2]
[399854412,1766749346948,150.0,5.608e-05,2]
[399854413,1766749347392,150.0,5.863e-05,2]
[399854414,1766749347832,150.0,6.118e-05,2]
[399854416,1766749357659,5000.0,0.00016897,2]
[399854417,1766749381011,4059.90910922,0.00016897,2]
[399854418,1766749381035,940.09089078,0.00016897,2]
[399854419,1766749383003,396.23489097,0.00013273,2]
[399854420,1766749383121,500.0,0.00013273,2]
[399854421,1766749383171,676.05276669,0.00013821,2]
[399854422,1766749383702,500.0,0.00013273,2]
[399854423,1766749383729,1000.0,0.00013821,2]
[399854424,1766749383757,193.59386885,0.00014368,2]
[399854425,1766749383804,500.0,0.00013273,2]
[399854426,1766749383869,1000.0,0.00013821,2]
[399854427,1766749387332,1588.8,0.00030137,120]
[399854428,1766749394392,500.0,0.00016858,7]
[399854429,1766749404207,3794.03758271,0.00016897,2]
[399854430,1766749404233,1205.96241729,0.00016897,2]
[399854431,1766749427199,5000.0,0.00016897,2]
[399854432,1766749429253,3853.96400619,0.0003,120]
[399854433,1766749436121,838.0,0.00030136,120]
[399854434,1766749450540,3794.04758271,0.00016897,2]
[399854435,1766749450565,1205.95241729,0.00016897,2]
[399854436,1766749450594,500.0,0.00013273,2]
[399854437,1766749451649,301.70852843,0.00013673,2]
[399854438,1766749474939,5000.0,0.00016812,2]
[399854439,1766749475861,150.0,5.34e-05,2]
[399854440,1766749476331,226.44,5.595e-05,2]
[399854441,1766749476712,339.66,5.849e-05,2]
[399854442,1766749477150,452.88,6.103e-05,2]
[399854443,1766749477563,566.1,6.357e-05,2]
[399854444,1766749477978,679.32,6.612e-05,2]
[399854445,1766749478406,792.54,6.866e-05,2]
[399854446,1766749478829,905.76,7.12e-05,2]
[399854447,1766749479387,887.31,7.375e-05,2]
[399854448,1766749479414,131.67,7.375e-05,2]
[399854449,1766749479683,1132.2,7.629e-05,2]
[399854451,1766749498376,3310.72570433,0.00016742,2]
[399854452,1766749506121,-426.90178049,0.00016744,7]
[399854453,1766749509776,500.0,0.00013273,2]
[399854454,1766749521499,500.0,0.00013273,2]
[399854455,1766749521531,5000.0,0.00016744,2]
[399854456,1766749550009,3146.20643902,0.00015926,2]
[399854457,1766749550032,857.68927448,0.00015926,2]
[399854458,1766749552127,150.0,5.484e-05,2]
[399854459,1766749552303,150.0,5.745e-05,2]
[399854460,1766749552742,150.0,6.006e-05,2]
[399854461,1766749553166,150.0,6.267e-05,2]
[399854462,1766749553610,167.49,6.529e-05,2]
[399854463,1766749554020,200.99,6.79e-05,2]
[399854464,1766749554464,234.49,7.051e-05,2]
[399854465,1766749554884,267.98,7.312e-05,2]
[399854466,1766749555280,301.48,7.573e-05,2]
[399854467,1766749555709,334.98,7.834e-05,2]
[399854468,1766749568174,5000.0,0.00016744,2]
[399854469,1766749583289,-150.0,0.0001676,2]
[399854470,1766749596495,3492.0787987,0.00016054,2]
[399854471,1766749614902,5000.0,0.0001676,2]
[399854472,1766749621059,150.0,5.463e-05,2]
[399854473,1766749621451,150.0,5.724e-05,2]
[399854474,1766749621855,150.0,5.984e-05,2]
[399854475,1766749623754,500.0,0.00013273,2]
[399854476,1766749623802,383.01886503,0.00013821,2]
[399854477,1766749625416,500.0,0.00013273,2]
[399854478,1766749626253,500.0,0.00013273,2]
[399854479,1766749632201,500.0,0.00013273,2]
[399854480,1766749687518,1000.0,0.00014247,2]
[399854481,1766749687544,500.0,0.00013273,2]
[399854482,1766749687570,500.0,0.00013699,2]
[399854483,1766749687597,1000.0,0.00013821,2]
[399854484,1766749687627,500.0,0.00013821,2]
[399854485,1766749687653,500.0,0.00013273,2]
[399854486,1766749687685,500.0,0.00013273,2]
[399854487,1766749687719,1000.0,0.00013821,2]
[399854488,1766749713432,500.0,0.00016825,2]
[399854489,1766749713462,2121.85466865,0.00016825,2]
[399854490,1766749713489,610.25654766,0.00016825,2]
[399854491,1766749713517,2121.85466865,0.00016825,2]
[399854492,1766749713565,2121.85466865,0.00016825,2]
[399854493,1766749713621,158.52174619,0.00016825,2]
[399854494,1766749713691,2121.85466865,0.00016825,2]
[399854495,1766749713871,243.81303155,0.00016825,2]
[399854496,1766749718673,-1878.0416371,0.00016825,2]
[399854497,1766749718706,-2121.85466865,0.00016825,2]
[399854498,1766749721684,-2121.85466865,0.00016825,2]
[399854499,1766749721715,-2121.85466865,0.00016825,2]
[399854500,1766749721744,-500.0,0.00016825,2]
[399854501,1766749725463,1512.6046166,0.00016054,2]
[399854502,1766749740129,-5000.0,0.00016657,2]
[399854503,1766749744151,0.01,0.00013273,2]
[399854504,1766749744173,499.99,0.00013273,2]
[399854505,1766749744357,550.60352669,0.00013273,2]
[399854506,1766749744735,379.79953395,0.00013273,2]
[399854507,1766749747028,500.0,0.00013273,2]
[399854508,1766749747082,500.0,0.00013821,2]
[399854510,1766749750903,150.0,5.499e-05,2]
[399854511,1766749751153,150.0,5.761e-05,2]
[399854512,1766749751615,157.57,6.023e-05,2]
[399854513,1766749752012,210.09,6.285e-05,2]
[399854514,1766749752424,262.61,6.546e-05,2]
[399854515,1766749752871,315.13,6.808e-05,2]
[399854516,1766749753264,367.66,7.07e-05,2]
[399854517,1766749753705,420.18,7.332e-05,2]
[399854518,1766749754171,472.7,7.594e-05,2]
[399854519,1766749754299,5000.0,0.00016657,2]
[399854520,1766749754573,63.67693936,7.856e-05,2]
[399854521,1766749754600,461.54306064,7.856e-05,2]
[399854522,1766749761472,12000.0,0.00030136,120]
[399854523,1766749783903,1333.1046469,0.00030137,120]
[399854524,1766749817089,-173.3705268,0.00016305,2]
[399854525,1766749825954,150.0,5.5e-05,2]
[399854526,1766749826365,150.0,5.762e-05,2]
[399854527,1766749826787,150.0,6.024e-05,2]
[399854528,1766749827223,150.0,6.286e-05,2]
[399854529,1766749827646,150.0,6.548e-05,2]
[399854530,1766749828035,150.0,6.809e-05,2]
[399854531,1766749828439,150.0,7.071e-05,2]
[399854542,1766749831608,-5000.0,0.00016656,2]
[399854543,1766749831618,-3773.07858417,0.00016725,2]
[399854544,1766749831628,-300.0,0.00016824,2]
[399854545,1766749831639,-500.0,0.00016825,2]
[399854546,1766749831649,-2121.85466865,0.00016825,2]
[399854547,1766749831658,-2121.85466865,0.00016825,2]
[399854548,1766749831668,-2121.85466865,0.00016825,2]
[399854549,1766749831678,-470.51064901,0.00016825,2]
[399854551,1766749831689,-889.01988707,0.00016825,2]
[399854553,1766749831701,-512.34182266,0.00016825,2]
[399854555,1766749831713,-249.98230991,0.00016825,2]
[399854557,1766749831723,-1104.34115961,0.00016825,2]
[399854568,1766749837801,-500.0,0.00016824,2]
[399854569,1766749837812,-250.0,0.00016824,2]
[399854570,1766749837853,-250.0,0.00016824,2]
[399854571,1766749837863,-500.0,0.00016824,2]
[399854572,1766749837873,-500.0,0.00016824,2]
[399854573,1766749837883,-602.53186132,0.00016824,2]
[399854574,1766749837893,-500.0,0.00016824,2]
[399854575,1766749837903,-500.0,0.00016824,2]
[399854576,1766749837913,-500.0,0.00016824,2]
[399854577,1766749837923,-500.0,0.00016824,2]
[399854578,1766749837933,-500.0,0.00016824,2]
[399854579,1766749837943,-254.24278503,0.00016824,2]
[399854580,1766749837953,-6.07445506,0.00016824,2]
[399854581,1766749837965,-156.54618263,0.00016824,2]
[399854583,1766749837975,-500.0,0.00016824,2]
[399854585,1766749837985,-500.0,0.00016824,2]
[399854587,1766749837995,-175.60960007,0.00016824,2]
[399854588,1766749838006,-500.0,0.00016824,2]
[399854589,1766749838016,-64.78572658,0.00016824,2]
[399854592,1766749839948,-435.21427342,0.00016824,2]
[399854593,1766749839958,-500.0,0.00016824,2]
[399854594,1766749839968,-500.0,0.00016824,2]
[399854595,1766749839978,-500.0,0.00016824,2]
[399854596,1766749839988,-500.0,0.00016824,2]
[399854597,1766749839998,-418.14186958,0.00016824,2]
[399854598,1766749840008,-500.0,0.00016824,2]
[399854599,1766749840018,-500.0,0.00016824,2]
[399854600,1766749840028,-500.0,0.00016824,2]
[399854601,1766749840038,-500.0,0.00016824,2]
[399854602,1766749840048,-500.0,0.00016824,2]
[399854603,1766749840058,-500.0,0.00016824,2]
[399854604,1766749840068,-405.29790508,0.00016824,2]
[399854605,1766749840078,-500.0,0.00016824,2]
[399854606,1766749840088,-500.0,0.00016824,2]
[399854607,1766749840098,-500.0,0.00016824,2]
[399854608,1766749840108,-1017.51350904,0.00016825,2]
[399854609,1766749840117,-2121.85466865,0.00016825,2]
[399854610,1766749840128,-2121.85466865,0.00016825,2]
[399854611,1766749840138,-2121.85466865,0.00016825,2]
[399854612,1766749840148,-2121.85466865,0.00016825,2]
[399854613,1766749840158,-2121.85466865,0.00016825,2]
[399854614,1766749840167,-2121.85466865,0.00016825,2]
[399854615,1766749840178,-2121.85466865,0.00016825,2]
[399854616,1766749840188,-2121.85466865,0.00016825,2]
[399854617,1766749840198,-2121.85466865,0.00016825,2]
[399854618,1766749840208,-1665.76958486,0.00016825,2]
[399854619,1766749840218,-1665.76958486,0.00016825,2]
[399854620,1766749840228,-1665.76958486,0.00016825,2]
[399854621,1766749840238,-1665.76958486,0.00016825,2]
[399854622,1766749840248,-1665.76958486,0.00016825,2]
[399854623,1766749840258,-1665.76958486,0.00016825,2]
[399854624,1766749840268,-1665.76958486,0.00016825,2]
[399854625,1766749840278,-1665.76958486,0.00016825,2]
[399854626,1766749840288,-1665.76958486,0.00016825,2]
[399854627,1766749840298,-21515.87451053,0.00016826,2]
[399854632,1766749843765,-500.0,0.0001676,2]
[399854633,1766749843776,-500.0,0.0001676,2]
[399854634,1766749843785,-11579.89120433,0.00016826,2]
[399854635,1766749843797,-787.38445668,0.00016826,2]
[399854638,1766749845803,-652.0,0.00016826,2]
[399854639,1766749847058,-4801.77722307,0.00016592,2]
[399854640,1766749847074,-198.22277693,0.00016592,2]
[399854641,1766749847085,-3146.40978246,0.00016826,2]
[399854642,1766749848111,6000.0,0.00030137,120]
[399854643,1766749857582,197.0281149,0.00013798,2]
[399854644,1766749863433,500.0,0.00013273,2]
[399854645,1766749863555,-500.0,0.00013821,2]
[399854646,1766749865615,500.0,0.00013273,2]
[399854647,1766749866015,500.0,0.00013273,2]
[399854648,1766749866076,500.0,0.00013273,2]
[399854649,1766749873530,197.04880993,0.00013798,2]
[399854650,1766749893478,150.0,5.472e-05,2]
[399854651,1766749893856,150.0,5.732e-05,2]
[399854652,1766749894286,150.0,5.993e-05,2]
[399854653,1766749894715,157.8,6.253e-05,2]
[399854654,1766749895172,197.25,6.514e-05,2]
[399854655,1766749895584,236.71,6.775e-05,2]
[399854656,1766749895997,276.16,7.035e-05,2]
[399854657,1766749896430,315.61,7.296e-05,2]
[399854658,1766749896871,355.06,7.556e-05,2]
[399854659,1766749897294,394.51,7.817e-05,2]
[399854660,1766749923843,500.0,0.00013699,2]
[399854661,1766749925401,500.0,0.00013273,2]
[399854662,1766749964734,150.0,5.453e-05,2]
[399854663,1766749965156,150.0,5.713e-05,2]
[399854664,1766749965588,150.0,5.972e-05,2]
[399854665,1766749965991,175.42,6.232e-05,2]
[399854666,1766749966400,219.28,6.492e-05,2]
[399854667,1766749966817,263.13,6.751e-05,2]
[399854668,1766749967204,306.99,7.011e-05,2]
[399854669,1766749967600,350.84,7.271e-05,2]
[399854670,1766749968032,394.7,7.53e-05,2]
[399854671,1766749968476,438.55,7.79e-05,2]
[399854672,1766749971026,-230.09787288,0.00016181,2]
[399854673,1766749971055,-414.17617119,0.00016181,2]
[399854674,1766749971083,-736.31319322,0.00016181,2]
[399854675,1766749971112,-1150.48936441,0.00016181,2]
[399854676,1766749983725,504.40949535,0.00013699,2]
[399854677,1766749986028,500.0,0.00013273,2]
[399854678,1766749986069,500.0,0.00013273,2]
[399854679,1766749986097,500.0,0.00013821,2]
[399854680,1766749986123,500.0,0.00013273,2]
[399854681,1766749986149,500.0,0.00013821,2]
[399854682,1766749986334,500.0,0.00013273,2]
[399854683,1766749986380,500.0,0.00013273,2]
[399854684,1766749986435,500.0,0.00013821,2]
[399854685,1766749986784,433.44730125,0.00013273,2]
[399854686,1766749986806,186.22884461,0.00013273,2]
[399854687,1766749989137,464.95053809,0.00013273,2]
[399854688,1766749989485,500.0,0.00013273,2]
[399854689,1766749989515,500.0,0.00013273,2]
[399854690,1766749989600,500.0,0.00013821,2]
[399854691,1766749995986,500.0,0.00013273,2]
[399854692,1766749996504,185.81276331,0.00015378,2]
[399854693,1766749998575,325.24233824,0.00013273,2]
[399854694,1766750000034,500.0,0.00013273,2]
[399854695,1766750002433,500.0,0.00013273,2]
[399854696,1766750002619,500.0,0.00013273,2]
[399854697,1766750002650,500.0,0.00013273,2]
[399854698,1766750002983,500.0,0.00013273,2]
[399854699,1766750003319,500.0,0.00013273,2]
[399854700,1766750003350,500.0,0.00013273,2]
[399854701,1766750003379,500.0,0.00013273,2]
[399854702,1766750003615,500.0,0.00013273,2]
[399854703,1766750036869,150.0,5.474e-05,2]
[399854704,1766750037270,150.0,5.735e-05,2]
[399854705,1766750037664,150.0,5.995e-05,2]
[399854706,1766750038079,150.0,6.256e-05,2]
[399854707,1766750038566,150.0,6.517e-05,2]
[399854708,1766750039019,150.0,6.777e-05,2]
[399854709,1766750039418,164.86,7.038e-05,2]
[399854710,1766750039859,188.41,7.298e-05,2]
[399854711,1766750040310,211.96,7.559e-05,2]
[399854712,1766750040775,235.51,7.82e-05,2]
[399854713,1766750043910,500.0,0.00013273,2]
[399854714,1766750043967,323.26436036,0.00013821,2]
[399854715,1766750043991,676.73563964,0.00013821,2]
[399854716,1766750047083,500.0,0.00013273,2]
[399854717,1766750047319,180.0,0.00016816,120]
[399854718,1766750049591,180.0,0.00016816,120]
[399854719,1766750051291,500.0,0.00013273,2]
[399854720,1766750051976,180.0,0.00016816,120]
[399854721,1766750053312,300.0,0.00013673,2]
[399854722,1766750053612,500.0,0.00013273,2]
[399854723,1766750054236,235.61530688,0.00016816,120]
[399854724,1766750056345,500.0,0.00013273,2]
[399854725,1766750056686,180.0,0.00018498,120]
[399854726,1766750056970,500.0,0.00013273,2]
[399854727,1766750059284,180.0,0.00018498,120]
[399854728,1766750061922,157.07687126,0.00018498,120]
[399854729,1766750094705,-1017.7937119,0.00015785,3]
[399854730,1766750225339,500.0,0.00013273,2]
[399854731,1766750225375,500.0,0.00013273,2]
[399854732,1766750226526,500.0,0.00013273,2]
[399854733,1766750267983,-5000.0,0.00016205,2]
[399854734,1766750279935,0.01,0.00016205,2]
[399854735,1766750279958,4999.99,0.00016205,2]
[399854739,1766750344546,500.0,0.00013273,2]
[399854740,1766750344932,500.0,0.00013273,2]
[399854741,1766750348174,500.0,0.00013273,2]
[399854742,1766750348205,500.0,0.00013273,2]
[399854743,1766750348235,500.0,0.00013273,2]
[399854745,1766750404685,500.0,0.00013273,2]
[399854746,1766750451406,-311.55566007,0.00016089,2]
[399854747,1766750451435,-356.06361151,0.00016089,2]
[399854748,1766750451464,-556.34939298,0.00016089,2]
[399854749,1766750451493,-653.0,0.00016089,2]
[399854750,1766750451524,-1091.17008566,0.00016205,2]
[399854751,1766750451556,-283.17882455,0.00016429,2]
[399854752,1766750451583,-500.0,0.00016577,5]
[399854753,1766750454265,-3301.44376114,0.00016665,2]
[399854754,1766750454299,-1200.0,0.00016721,2]
[399854755,1766750454329,-299.0,0.00016725,2]
[399854756,1766750454361,-165.76046166,0.00016726,2]
[399854757,1766750457311,-300.0,0.00016734,2]
[399854758,1766750457341,-300.0,0.00016734,2]
[399854759,1766750457371,-300.0,0.00016734,2]
[399854760,1766750457603,-1200.0,0.00016735,2]
[399854761,1766750463435,-3908.82991434,0.00016569,2]
[399854762,1766750463466,-300.0,0.00016735,2]
[399854763,1766750466542,-154.89831664,0.00016715,2]
[399854764,1766750466572,-819.25995102,0.00016736,2]
[399854765,1766750466879,-1948.31653532,0.00016736,2]
[399854766,1766750467013,-3896.63307064,0.00016736,2]
[399854767,1766750467131,-2206.74385872,0.00016736,2]
[399854768,1766750467158,-210.84751501,0.00016736,2]
[399854769,1766750467187,-1044.0874034,0.00016736,2]
[399854770,1766750467216,-500.0,0.00016757,7]
[399854771,1766750467244,-500.0,0.0001676,2]
[399854772,1766750467272,-150.0,0.0001676,2]
[399854773,1766750467302,-276.65244574,0.0001676,2]
[399854774,1766750467490,-223.34755426,0.0001676,2]
[399854775,1766750467520,-500.0,0.0001676,2]
[399854776,1766750467548,-500.0,0.0001676,2]
[399854777,1766750467575,-500.0,0.0001676,2]
[399854778,1766750467603,-500.0,0.0001676,2]
[399854779,1766750467632,-500.0,0.0001676,2]
[399854780,1766750467661,-157.9049439,0.0001676,2]
[399854781,1766750468086,-3702.94243138,0.0001676,2]
[399854782,1766750468102,-10000.01,0.0001676,2]
[399854783,1766750468118,-10000.01,0.0001676,2]
[399854784,1766750469520,-10000.01,0.0001676,2]
[399854785,1766750469682,-10000.01,0.0001676,2]
[399854786,1766750469832,-3758.96616926,0.0001676,2]
[399854787,1766750469864,-500.0,0.00016763,2]
[399854788,1766750469896,-500.0,0.00016763,2]
[399854789,1766750469960,-482.07766148,0.00016763,2]
[399854790,1766750469994,-17.92233852,0.00016763,2]
[399854791,1766750470027,-500.0,0.00016763,2]
[399854792,1766750470058,-572.61251073,0.00016763,2]
[399854793,1766750470089,-172.12318531,0.00016763,2]
[399854794,1766750470118,-500.0,0.00016763,2]
[399854795,1766750470149,-500.0,0.00016763,2]
[399854796,1766750470178,-500.0,0.00016763,2]
[399854797,1766750470208,-500.0,0.00016763,2]
[399854798,1766750470237,-500.0,0.00016763,2]
[399854799,1766750470268,-500.0,0.00016763,2]
[399854800,1766750470491,-500.0,0.00016763,2]
[399854801,1766750470580,-500.0,0.00016763,2]
[399854802,1766750470609,-500.0,0.00016763,2]
[399854803,1766750470638,-500.0,0.00016763,2]
[399854804,1766750470668,-362.98170245,0.00016763,2]
[399854805,1766750470697,-500.0,0.00016763,2]
[399854806,1766750470726,-500.0,0.00016763,2]
[399854807,1766750470755,-500.0,0.00016763,2]
[399854808,1766750470785,-500.0,0.00016763,2]
[399854809,1766750470816,-500.0,0.00016763,2]
[399854810,1766750470845,-500.0,0.00016763,2]
[399854811,1766750471133,-500.0,0.00016763,2]
[399854812,1766750471147,-274.0465951,0.00016763,2]
[399854813,1766750472540,-225.9534049,0.00016763,2]
[399854814,1766750472570,-500.0,0.00016763,2]
[399854815,1766750472618,-8548.1031902,0.00016765,2]
[399854816,1766750472652,-3992.5734729,0.00016765,2]
[399854817,1766750472680,-606.0850083,0.00016777,2]
[399854818,1766750472708,-318.0,0.00016798,2]
[399854819,1766750525507,500.0,0.00013273,2]
[399854820,1766750525774,500.0,0.00013273,2]
[399854821,1766750526735,500.0,0.00013273,2]
[399854822,1766750586766,500.0,0.00013273,2]
[399854823,1766750586794,500.0,0.00013699,2]
[399854824,1766750618313,150.0,5.406e-05,2]
[399854825,1766750618735,150.0,5.663e-05,2]
[399854826,1766750619203,150.0,5.921e-05,2]
[399854827,1766750621787,-273.97762492,0.00016089,2]
[399854828,1766750621815,-312.80416833,0.00016089,2]
[399854829,1766750621847,-2938.4464135,0.00016537,2]
[399854830,1766750624641,-2949.5535865,0.00016537,2]
[399854831,1766750624676,-4100.902827,0.00016576,2]
[399854832,1766750630930,-1787.097173,0.00016576,2]
[399854833,1766750755254,577.110629,0.00013699,2]
[399854837,1766750823324,500.0,0.00013273,2]
[399854838,1766750883389,161.62,0.00011299,7]
[399854839,1766750883691,161.6,0.00011299,7]
[399854840,1766750992673,-5000.0,0.00015657,2]
[399854841,1766751003189,0.01,0.00015644,2]
[399854842,1766751003212,1572.5934984,0.00015644,2]
[399854843,1766751004744,500.0,0.00013273,2]
[399854844,1766751004792,550.84116012,0.00013821,2]
[399854845,1766751010658,5000.0,0.00015736,2]
[399854881,1766751031887,-277.51524806,0.00015736,2]
[399854882,1766751031898,-160.73417,0.00015815,2]
[399854883,1766751031909,-183.9824801,0.00015954,2]
[399854884,1766751031919,-102.99130376,0.00016475,2]
[399854885,1766751031932,-557.26,0.00016475,2]
[399854888,1766751037912,-2129.12289752,0.00015579,2]
[399854889,1766751037921,-406.00179008,0.00015579,2]
[399854890,1766751037967,-2464.8753124,0.00015579,2]
[399854891,1766751037977,-1034.32210235,0.00016475,2]
[399854892,1766751037984,-2998.68903438,0.00016613,2]
[399854893,1766751037992,-1200.0,0.00016673,2]
[399854894,1766751037999,-687.0,0.00016674,2]
[399854895,1766751038010,-300.0,0.00016674,2]
[399854896,1766751038017,-5888.0,0.00016675,2]
[399854897,1766751038025,-250.0,0.00016705,2]
[399854898,1766751038032,-322.124,0.00016705,2]
[399854899,1766751038041,-440.94404154,0.00016705,2]
[399854900,1766751038049,-250.0,0.00016705,2]
[399854901,1766751038057,-151.0,0.00016705,2]
[399854902,1766751038065,-250.0,0.00016705,2]
[399854903,1766751038076,-250.0,0.00016705,2]
[399854904,1766751038083,-250.0,0.00016705,2]
[399854905,1766751038093,-250.0,0.00016705,2]
[399854906,1766751038101,-250.0,0.00016705,2]
[399854907,1766751038109,-250.0,0.00016705,2]
[399854908,1766751038118,-250.0,0.00016705,2]
[399854909,1766751038125,-250.0,0.00016705,2]
[399854910,1766751038133,-151.0,0.00016705,2]
[399854911,1766751038141,-250.0,0.00016705,2]
[399854912,1766751038150,-250.0,0.00016705,2]
[399854913,1766751038159,-168.3888056,0.00016705,2]